bitfinex/quotes_SOLUSD_20250401
["timestamp","ask_amount","ask_price","bid_price","bid_amount"]
[1743521253507,0.263,128.89,128.86,0.03]
[1743521253713,0.28432314,128.91,128.86,0.03]
[1743521253714,0.263,128.87,128.86,0.03]
[1743521257916,8.0227,128.87,128.86,0.03]
[1743521258112,0.263,128.87,128.86,0.03]
[1743521258317,8.0227,128.87,128.86,0.03]
[1743521259216,0.263,128.87,128.86,0.03]
[1743521259830,8.0227,128.87,128.86,0.03]
[1743521260015,16.14366157,128.87,128.86,0.03]
[1743521260207,28.81856157,128.87,128.86,0.03]
[1743521260616,28.96072314,128.87,128.86,0.03]
[1743521261018,28.96072314,128.87,128.83,0.03]
[1743521261019,8.0245,128.84,128.83,0.03]
[1743521261811,8.30882314,128.84,128.83,0.03]
[1743521263927,0.40516157,128.84,128.83,0.03]
[1743521264327,8.16666157,128.84,128.83,0.03]
[1743521265616,8.30882314,128.84,128.83,0.03]
[1743521265826,0.263,128.79,128.78,0.03]
[1743521266132,8.29166157,128.79,128.78,0.03]
[1743521266324,8.43382314,128.79,128.78,0.03]
[1743521267320,8.29166157,128.79,128.78,0.03]
[1743521267529,16.19832314,128.79,128.78,0.03]
[1743521269936,8.1495,128.79,128.78,0.03]
[1743521270447,0.263,128.79,128.78,0.03]
[1743521270809,0.263,128.8,128.78,0.03]
[1743521271124,0.263,128.8,128.79,38.64964886]
[1743521273020,0.263,128.8,128.78,0.03]
[1743521273211,0.263,128.79,128.78,0.03]
[1743521273551,8.31182314,128.79,128.78,0.03]
[1743521273848,8.0275,128.79,128.78,0.03]
[1743521274144,0.263,128.79,128.78,0.03]
[1743521274633,8.0275,128.79,128.78,0.03]
[1743521274836,0.263,128.79,128.78,0.03]
[1743521275214,8.0275,128.79,128.78,0.03]
[1743521276315,0.263,128.79,128.78,0.03]
[1743521278145,0.263,128.79,128.78,18.67964886]
[1743521278944,0.263,128.79,128.78,0.03]
[1743521281139,0.263,128.79,128.78,18.67964886]
[1743521281316,0.263,128.81,128.8,38.64964886]
[1743521281521,0.263,128.83,128.8,38.64964886]
[1743521281743,0.063,128.84,128.83,20.0]
[1743521281923,0.063,128.84,128.83,38.64964886]
[1743521282841,0.063,128.84,128.83,46.41174886]
[1743521283622,0.263,128.93,128.87,20.0]
[1743521283822,24.85721676,128.94,128.92,18.64964886]
[1743521283823,12.01991676,128.94,128.92,18.64964886]
[1743521284056,11.75691676,128.94,128.93,27.78964886]
[1743521284274,24.03983353,128.95,128.94,18.64964886]
[1743521284718,24.03983353,128.95,128.94,26.40514886]
[1743521284918,48.07966707,128.96,128.94,26.54731043]
[1743521285120,0.063,128.97,128.96,38.64964886]
[1743521286538,0.063,128.97,128.96,47.76964886]
[1743521287425,0.326,128.97,128.96,51.6299356]
[1743521289325,0.326,128.97,128.96,47.76964886]
[1743521289521,0.326,128.97,128.96,27.76964886]
[1743521290364,8.0797,128.97,128.96,18.64964886]
[1743521290525,0.326,128.97,128.96,18.64964886]
[1743521291545,0.063,128.97,128.96,18.64964886]
[1743521292045,0.326,128.97,128.96,18.64964886]
[1743521292549,8.0797,128.97,128.96,18.64964886]
[1743521292941,0.326,128.97,128.96,18.64964886]
[1743521293947,0.063,128.97,128.96,18.64964886]
[1743521294130,0.063,128.97,128.96,18.79181043]
[1743521297249,7.72894743,129.02,128.99,18.64964886]
[1743521297646,20.5875,129.03,128.99,18.64964886]
[1743521297955,7.812,129.05,129.03,18.64964886]
[1743521298749,0.063,129.05,129.03,18.64964886]
[1743521298932,7.8121,129.05,129.03,18.64964886]
[1743521299534,0.063,129.05,129.03,18.64964886]
[1743521301030,0.34732314,129.05,128.99,0.03]
[1743521301268,20.0,129.03,128.99,0.03]
[1743521301472,0.28432314,129.02,128.99,0.03]
[1743521301662,7.7513,129.01,128.99,0.03]
[1743521302044,13.02552314,129.0,128.99,0.03]
[1743521302241,20.99442314,129.0,128.99,0.03]
[1743521302642,20.99442314,129.0,128.91,12.01991676]
[1743521303072,20.99442314,129.0,128.93,18.64964886]
[1743521303741,0.28432314,128.98,128.93,18.64964886]
[1743521303946,27.1338,128.99,128.93,18.64964886]
[1743521304147,7.7525,128.99,128.93,26.40564886]
[1743521304463,20.7101,129.0,128.93,26.40564886]
[1743521304464,28.4622,129.0,128.93,26.40564886]
[1743521304646,28.4622,129.0,128.97,18.64964886]
[1743521304838,20.7101,129.0,128.97,18.64964886]
[1743521305040,7.751,129.02,128.97,18.64964886]
[1743521305556,7.7504,129.03,128.97,241.96964886]
[1743521305760,27.6428,129.04,129.01,18.64964886]
[1743521306084,27.6428,129.04,128.99,18.64964886]
[1743521307045,27.6428,129.04,128.98,18.64964886]
[1743521307462,47.0166,129.04,128.98,18.64964886]
[1743521307870,0.28432314,129.03,128.94,18.64964886]
[1743521308050,0.28432314,129.03,128.97,18.64964886]
[1743521308862,0.28432314,129.03,128.93,81.7]
[1743521309073,0.28432314,129.01,128.94,9.1]
[1743521309447,0.28432314,129.01,128.94,27.74964886]
[1743521309768,0.28432314,129.01,128.95,18.64964886]
[1743521311067,0.28432314,128.99,128.95,18.64964886]
[1743521311371,12.0648,128.98,128.93,18.64964886]
[1743521312774,7.7515,129.01,128.93,18.64964886]
[1743521312969,7.7515,129.01,128.97,18.64964886]
[1743521313556,27.1298,129.01,128.95,9.1]
[1743521314653,7.7515,129.01,128.95,9.1]
[1743521315053,27.1298,129.01,128.95,9.1]
[1743521319077,27.1298,129.01,128.95,27.74964886]
[1743521319774,27.1298,129.01,128.96,18.64964886]
[1743521323979,65.8864,129.01,128.96,18.64964886]
[1743521324178,27.1298,129.01,128.96,18.64964886]
[1743521324870,12.8099,129.02,128.96,18.64964886]
[1743521325262,0.28432314,129.01,128.96,18.64964886]
[1743521325463,0.28432314,129.01,128.95,18.64964886]
[1743521325668,12.8099,129.02,128.95,18.64964886]
[1743521326069,27.1928,129.01,128.95,18.64964886]
[1743521327964,27.1338,128.99,128.94,223.35]
[1743521328175,7.8688,128.97,128.94,0.03]
[1743521328379,12.57442314,128.95,128.94,0.03]
[1743521328683,12.57442314,128.95,128.87,314.12]
[1743521328986,12.57442314,128.95,128.86,12.04991676]
[1743521328987,8.55262314,128.91,128.86,12.04991676]
[1743521329688,0.28432314,128.89,128.86,12.04991676]
[1743521330059,0.28432314,128.87,128.86,12.04991676]
[1743521330671,7.7591,128.88,128.86,0.03]
[1743521331190,8.04302314,128.89,128.86,0.03]
[1743521331481,15.97693257,128.87,128.86,0.03]
[1743521332282,23.73663257,128.87,128.86,0.03]
[1743521332480,23.73663257,128.87,128.81,9.1]
[1743521332481,15.97693257,128.87,128.81,9.1]
[1743521332865,5.32564419,128.87,128.81,9.1]
[1743521333795,7.7598,128.87,128.81,9.1]
[1743521334576,0.14216157,128.86,128.82,18.64964886]
[1743521334895,7.7598,128.87,128.81,18.64964886]
[1743521335774,48.34421898,128.88,128.81,18.64964886]
[1743521336188,48.34421898,128.88,128.85,18.64964886]
[1743521336392,48.34421898,128.88,128.87,38.64964886]
[1743521337179,48.34421898,128.88,128.87,55.50934886]
[1743521337370,48.34421898,128.88,128.87,47.74964886]
[1743521337570,7.7561,128.93,128.88,18.64964886]
[1743521338176,27.1464,128.93,128.87,9.1]
[1743521338377,27.1464,128.93,128.86,47.74964886]
[1743521338803,0.28432314,128.92,128.86,47.74964886]
[1743521340297,0.28432314,128.92,128.82,81.7]
[1743521340609,0.14216157,128.88,128.82,9.1]
[1743521340804,0.14216157,128.88,128.83,18.64964886]
[1743521340985,12.2129,128.87,128.83,18.64964886]
[1743521341178,12.2129,128.87,128.82,9.1]
[1743521341179,0.28432314,128.86,128.79,223.32]
[1743521341596,0.14216157,128.86,128.8,18.64964886]
[1743521341993,12.2129,128.87,128.8,18.64964886]
[1743521342378,7.7603,128.86,128.8,26.41314886]
[1743521342801,7.7603,128.86,128.8,22.49791544]
[1743521344107,0.28432314,128.85,128.8,18.64964886]
[1743521344608,7.7615,128.84,128.8,22.53452728]
[1743521344906,7.7615,128.84,128.8,18.64964886]
[1743521347009,27.1654,128.84,128.8,18.64964886]
[1743521348094,0.28432314,128.81,128.78,0.03]
[1743521348813,0.14216157,128.79,128.78,0.03]
[1743521349791,20.63076157,128.79,128.78,0.03]
[1743521350692,7.7641,128.8,128.78,0.03]
[1743521351095,0.14216157,128.79,128.78,0.03]
[1743521351711,7.90666157,128.79,128.78,0.03]
[1743521352094,7.7645,128.79,128.78,0.03]
[1743521352711,0.14216157,128.81,128.78,0.03]
[1743521353114,7.7636,128.81,128.78,0.03]
[1743521353820,7.7636,128.81,128.75,0.03]
[1743521354218,0.14216157,128.8,128.75,0.03]
[1743521354720,0.28432314,128.8,128.75,0.03]
[1743521355902,7.7645,128.79,128.72,227.50904007]
[1743521356104,7.7645,128.79,128.72,223.57]
[1743521356622,27.1759,128.79,128.72,223.57]
[1743521356917,0.14216157,128.74,128.72,0.03]
[1743521357218,0.28432314,128.74,128.72,0.03]
[1743521357533,13.00842314,128.71,128.65,0.03]
[1743521357897,7.5514,128.68,128.65,0.03]
[1743521358314,0.28432314,128.67,128.65,0.03]
[1743521358909,0.28432314,128.67,128.62,223.62]
[1743521359126,0.28432314,128.67,128.58,20.0]
[1743521359500,0.28432314,128.67,128.55,7.7787]
[1743521359699,0.28432314,128.67,128.57,30.0]
[1743521359899,0.14216157,128.65,128.58,20.0]
[1743521360095,0.14216157,128.65,128.59,18.64964886]
[1743521360609,12.5932,128.64,128.55,9.08]
[1743521360815,12.5932,128.64,128.56,18.64964886]
[1743521361212,12.5932,128.64,128.59,20.0]
[1743521361602,0.14216157,128.63,128.59,20.0]
[1743521361905,12.5932,128.64,128.6,18.64964886]
[1743521363220,20.367,128.64,128.59,20.0]
[1743521363425,0.14216157,128.63,128.59,20.0]
[1743521364807,0.14216157,128.62,128.58,0.03]
[1743521366217,7.91716157,128.62,128.58,0.03]
[1743521367020,0.14216157,128.62,128.58,0.03]
[1743521367227,0.28432314,128.61,128.58,0.03]
[1743521367826,0.14216157,128.62,128.55,27.72964886]
[1743521368137,8.05912314,128.62,128.55,27.72964886]
[1743521369236,8.05912314,128.62,128.55,9.08]
[1743521369417,8.05912314,128.62,128.55,27.72964886]
[1743521369606,8.05912314,128.62,128.56,18.64964886]
[1743521369810,8.05912314,128.62,128.55,16.8589]
[1743521369811,8.05912314,128.62,128.55,9.08]
[1743521370926,8.05912314,128.62,128.55,16.8589]
[1743521371310,8.05912314,128.62,128.55,9.08]
[1743521374119,7.712,128.61,128.54,18.64964886]
[1743521374528,7.712,128.61,128.54,20.0]
[1743521374708,7.712,128.61,128.52,6.162455]
[1743521374914,0.28432314,128.6,128.51,223.94]
[1743521375635,0.28432314,128.6,128.52,9.08]
[1743521376040,7.7766,128.59,128.52,9.08]
[1743521376535,7.7766,128.59,128.53,18.64964886]
[1743521376919,7.7766,128.59,128.53,242.62964886]
[1743521377940,27.2182,128.59,128.53,223.98]
[1743521378119,7.7778,128.57,128.53,223.98]
[1743521378315,7.7775,128.58,128.54,18.64964886]
[1743521378515,7.776,128.6,128.54,18.64964886]
[1743521378720,0.28432314,128.59,128.53,223.98]
[1743521380223,0.28432314,128.57,128.53,223.98]
[1743521380616,7.776,128.6,128.54,18.64964886]
[1743521380830,7.776,128.6,128.56,18.64964886]
[1743521381029,7.776,128.6,128.55,9.08]
[1743521381422,7.776,128.6,128.56,18.64964886]
[1743521381640,7.776,128.6,128.55,9.08]
[1743521381850,15.4875,128.61,128.56,18.64964886]
[1743521382035,15.4875,128.61,128.55,9.08]
[1743521382238,15.4875,128.61,128.54,18.64964886]
[1743521382542,15.4875,128.61,128.55,9.08]
[1743521382741,15.4875,128.61,128.56,18.64964886]
[1743521383043,15.4875,128.61,128.56,9.08]
[1743521384938,15.4875,128.61,128.57,20.0]
[1743521386122,34.9261,128.61,128.57,20.0]
[1743521386322,34.9261,128.61,128.54,224.0]
[1743521386519,0.28432314,128.6,128.54,224.0]
[1743521387247,27.2182,128.59,128.54,224.0]
[1743521389229,0.28432314,128.58,128.54,224.0]
[1743521389435,27.2224,128.57,128.54,224.0]
[1743521390632,40.3051,128.57,128.54,224.0]
[1743521392344,79.1944,128.57,128.5,9.08]
[1743521392730,79.1944,128.57,128.5,18.64964886]
[1743521393042,79.1944,128.57,128.5,27.72964886]
[1743521393245,40.3051,128.57,128.5,27.72964886]
[1743521396877,40.3051,128.57,128.5,27.75964886]
[1743521398935,79.1944,128.57,128.5,27.75964886]
[1743521399531,0.28432314,128.56,128.5,0.03]
[1743521399949,7.7578,128.55,128.5,0.03]
[1743521400455,27.2287,128.54,128.5,0.03]
[1743521403459,7.7796,128.54,128.5,0.03]
[1743521404256,27.2287,128.54,128.5,0.03]
[1743521405060,66.1174,128.56,128.5,0.03]
[1743521405441,7.7784,128.56,128.53,20.0]
[1743521405634,13.1183,128.6,128.54,9.06]
[1743521405838,7.7766,128.59,128.54,9.06]
[1743521406243,27.2182,128.59,128.54,9.06]
[1743521406739,7.7766,128.59,128.54,9.06]
[1743521406939,7.7766,128.59,128.57,20.0]
[1743521407140,0.063,128.62,128.57,20.0]
[1743521407342,0.063,128.62,128.6,18.64964886]
[1743521407549,0.063,128.62,128.61,9.06]
[1743521407863,7.8378,128.62,128.61,9.06]
[1743521408256,0.063,128.62,128.61,9.06]
[1743521408455,7.8378,128.62,128.61,9.06]
[1743521409174,0.063,128.62,128.61,9.06]
[1743521409472,7.7722,128.67,128.61,27.993972]
[1743521409642,12.7192,128.71,128.64,20.0]
[1743521409842,8.0175,128.73,128.68,20.0]
[1743521410064,8.0175,128.73,128.68,29.06]
[1743521410365,7.7688,128.72,128.68,29.06]
[1743521410551,7.7688,128.72,128.68,9.06]
[1743521410976,27.1908,128.72,128.65,18.64964886]
[1743521411180,0.28432314,128.71,128.66,9.06]
[1743521411477,27.1908,128.72,128.66,9.06]
[1743521411676,27.1908,128.72,128.66,12.90543192]
[1743521411958,27.1908,128.72,128.66,9.06]
[1743521412152,27.1908,128.72,128.7,11.92532249]
[1743521412561,13.0329,128.71,128.69,3.109e-05]
[1743521412767,13.0329,128.71,128.65,24.26319234]
[1743521413558,7.77,128.7,128.65,24.26319234]
[1743521414445,7.77,128.7,128.66,20.0]
[1743521415744,27.195,128.7,128.66,20.0]
[1743521415951,27.195,128.7,128.67,9.06]
[1743521417249,0.28432314,128.69,128.63,9.06]
[1743521417455,27.1992,128.68,128.63,9.06]
[1743521417857,7.7688,128.72,128.68,20.0]
[1743521418058,0.063,128.74,128.71,20.0]
[1743521418265,7.8308,128.74,128.69,9.06]
[1743521419049,27.2497,128.74,128.69,9.06]
[1743521419867,19.4819,128.74,128.69,9.06]
[1743521420569,0.28432314,128.73,128.67,223.9]
[1743521421551,18.933972,128.73,128.67,223.9]
[1743521421919,66.0348,128.72,128.67,223.9]
[1743521422568,0.28432314,128.71,128.67,223.9]
[1743521423885,7.77,128.7,128.67,223.9]
[1743521424286,7.77,128.7,128.65,9.04]
[1743521424492,27.195,128.7,128.65,9.04]
[1743521424799,21.1316,128.69,128.65,9.04]
[1743521426165,7.7712,128.68,128.65,9.04]
[1743521426364,7.7712,128.68,128.62,223.86]
[1743521426679,7.7712,128.68,128.62,232.9]
[1743521426985,7.7712,128.68,128.62,240.6747]
[1743521427791,21.1316,128.69,128.65,20.0]
[1743521428168,0.28432314,128.72,128.66,20.0]
[1743521428372,0.28432314,128.72,128.67,9.04]
[1743521430389,7.7694,128.71,128.67,9.04]
[1743521430590,28.8528,128.73,128.67,16.8116]
[1743521433092,28.9158,128.73,128.67,16.8116]
[1743521433575,28.9158,128.73,128.67,9.04]
[1743521433778,0.28432314,128.72,128.66,20.03]
[1743521434494,0.28432314,128.72,128.66,7.8023]
[1743521434880,0.063,128.73,128.69,20.0]
[1743521435085,7.8312,128.73,128.69,20.0]
[1743521435391,7.8312,128.73,128.68,20.0]
[1743521435570,0.34732314,128.73,128.68,20.0]
[1743521435975,0.34732314,128.73,128.67,7.7714]
[1743521436275,0.34732314,128.73,128.66,7.8021]
[1743521437298,0.063,128.73,128.66,7.8021]
[1743521437481,7.8314,128.73,128.66,7.8021]
[1743521437791,0.28432314,128.72,128.66,7.8021]
[1743521438992,7.7694,128.71,128.66,7.8021]
[1743521440395,0.063,128.73,128.66,27.2331]
[1743521440594,0.20516157,128.73,128.66,27.2331]
[1743521440799,7.8312,128.73,128.66,27.2331]
[1743521441391,18.933972,128.72,128.66,0.03]
[1743521441586,20.3096,128.71,128.66,0.03]
[1743521441999,18.933972,128.7,128.66,0.03]
[1743521442197,21.06502314,128.66,128.57,231.5775]
[1743521442405,18.64964886,128.65,128.57,232.84]
[1743521442612,20.7807,128.66,128.57,240.6178]
[1743521442905,0.28432314,128.65,128.6,20.0]
[1743521443782,20.7807,128.66,128.6,20.0]
[1743521443982,20.7807,128.66,128.61,7.7754]
[1743521444394,0.14216157,128.68,128.62,9.04]
[1743521445684,0.14216157,128.68,128.66,0.03]
[1743521446107,8.05612314,128.67,128.66,0.03]
[1743521447109,7.7714,128.68,128.66,0.03]
[1743521448104,0.28432314,128.67,128.66,0.03]
[1743521450000,0.28432314,128.67,128.57,286.89167056]
[1743521450001,0.28432314,128.66,128.57,294.66927056]
[1743521450200,18.933972,128.66,128.57,223.8]
[1743521450501,18.933972,128.66,128.57,232.84]
[1743521451281,18.933972,128.66,128.57,240.6176]
[1743521452104,27.2055,128.65,128.57,240.6176]
[1743521453631,18.933972,128.64,128.57,232.84]
[1743521453933,18.933972,128.64,128.57,223.8]
[1743521454618,18.933972,128.64,128.57,231.5778]
[1743521455499,7.7742,128.63,128.57,231.5778]
[1743521460821,7.7752,128.62,128.57,223.8]
[1743521461208,7.7752,128.62,128.57,231.5777]
[1743521461901,7.7752,128.62,128.57,231.9989738]
[1743521462313,101.1316,128.66,128.57,231.9989738]
[1743521462515,8.05762314,128.65,128.6,20.0]
[1743521462936,8.05762314,128.65,128.6,27.7756]
[1743521463299,8.05762314,128.65,128.57,224.2212738]
[1743521463624,8.05762314,128.65,128.58,7.7769]
[1743521463819,0.28432314,128.64,128.58,7.7769]
[1743521464127,7.7733,128.65,128.61,20.0]
[1743521465004,7.7733,128.65,128.6,20.0]
[1743521467142,7.7733,128.65,128.6,27.7755]
[1743521467346,8.05682314,128.66,128.61,9.02]
[1743521467639,7.7721,128.67,128.61,9.02]
[1743521468840,8.11852314,128.68,128.62,27.7748]
[1743521469207,20.2234,128.61,128.56,0.03]
[1743521469408,0.14216157,128.64,128.5,47.86093729]
[1743521469409,39.657372,128.54,128.5,47.86093729]
[1743521469641,38.933972,128.51,128.5,7.43563729]
[1743521469815,38.933972,128.51,128.5,3.729e-05]
[1743521470223,18.933972,128.5,128.48,3.118e-05]
[1743521470631,7.7851,128.45,128.44,0.03]
[1743521470834,34.588372,128.45,128.44,0.03]
[1743521471012,18.933972,128.44,128.43,129.93489714]
[1743521471219,18.933972,128.44,128.43,89.32309714]
[1743521471416,0.28432314,128.44,128.43,9.88109714]
[1743521471616,0.28432314,128.44,128.36,223.94]
[1743521471617,0.28432314,128.42,128.36,223.94]
[1743521471811,20.0,128.43,128.37,30.0]
[1743521471812,12.64592314,128.41,128.37,30.0]
[1743521472015,12.64592314,128.41,128.34,2.7004629]
[1743521472016,0.28432314,128.35,128.34,2.7004629]
[1743521472228,18.933972,128.35,128.34,2.7004629]
[1743521472836,0.28432314,128.35,128.34,2.7004629]
[1743521473257,7.7894,128.38,128.34,2.7004629]
[1743521473551,128.02452217,128.35,128.34,2.7004629]
[1743521473913,158.02452217,128.35,128.34,2.7004629]
[1743521474131,176.67417103,128.35,128.34,2.7004629]
[1743521474333,20.28432314,128.31,128.21,224.04]
[1743521474536,18.933972,128.31,128.22,9.02]
[1743521474841,18.933972,128.31,128.24,20.0]
[1743521475132,38.933972,128.28,128.21,224.04]
[1743521475332,48.34421898,128.24,128.21,224.04]
[1743521475639,48.34421898,128.24,128.21,0.03]
[1743521476146,48.34421898,128.24,128.21,5.2689849]
[1743521476647,48.34421898,128.24,128.22,47.953972]
[1743521476829,11.98114675,128.26,128.25,0.28432314]
[1743521477029,11.98114675,128.26,128.25,242.80964886]
[1743521477249,11.98114675,128.26,128.25,252.113972]
[1743521477545,23.9622935,128.29,128.26,18.64964886]
[1743521477749,23.9622935,128.29,128.27,9.02]
[1743521479048,30.0,128.28,128.27,9.02]
[1743521480147,30.0,128.28,128.25,224.16]
[1743521481254,0.28432314,128.34,128.25,231.9567]
[1743521481447,0.28432314,128.34,128.27,0.03]
[1743521481629,18.933972,128.34,128.27,0.03]
[1743521481970,0.28432314,128.34,128.27,0.03]
[1743521484951,0.28432314,128.34,128.27,9.05]
[1743521485363,98.54654099,128.35,128.28,18.64964886]
[1743521485569,98.54654099,128.35,128.27,16.8459]
[1743521485855,0.28432314,128.34,128.27,9.05]
[1743521486070,0.28432314,128.34,128.27,16.846]
[1743521486757,0.28432314,128.34,128.27,7.8258]
[1743521486988,0.28432314,128.34,128.28,9.02]
[1743521487831,0.28432314,128.34,128.29,9.02]
[1743521488444,0.28432314,128.34,128.27,9.05]
[1743521488445,18.933972,128.34,128.27,9.05]
[1743521488839,0.28432314,128.34,128.27,16.8459]
[1743521489257,18.933972,128.34,128.27,9.05]
[1743521489645,0.28432314,128.3,128.27,0.03]
[1743521490150,0.28432314,128.28,128.27,0.03]
[1743521490331,12.1088,128.29,128.27,0.03]
[1743521490745,18.64964886,128.3,128.27,0.03]
[1743521491069,18.64964886,128.3,128.27,5.2689849]
[1743521491070,30.0,128.28,128.27,5.2689849]
[1743521491259,64.26124886,128.28,128.27,5.2689849]
[1743521491559,100.34964886,128.27,128.21,0.03]
[1743521491761,18.64964886,128.25,128.21,0.03]
[1743521492142,81.7,128.24,128.21,0.03]
[1743521492343,81.7,128.23,128.21,0.03]
[1743521492767,0.14216157,128.22,128.21,0.03]
[1743521493145,18.79181043,128.22,128.21,0.03]
[1743521493340,81.7,128.23,128.21,0.03]
[1743521493675,20.0,128.25,128.21,0.03]
[1743521493878,0.14216157,128.26,128.21,0.03]
[1743521494082,30.0,128.22,128.21,18.67964886]
[1743521494453,0.14216157,128.3,128.24,20.0]
[1743521494657,0.063,128.31,128.25,9.02]
[1743521494871,0.20516157,128.31,128.25,9.02]
[1743521495062,0.20516157,128.31,128.24,20.0]
[1743521495253,0.20516157,128.31,128.25,9.02]
[1743521495455,0.34732314,128.31,128.26,7.7966]
[1743521495865,0.34732314,128.31,128.25,16.817]
[1743521496184,108.490672,128.31,128.22,7.799]
[1743521497357,108.490672,128.31,128.22,9.02]
[1743521497954,82.04732314,128.31,128.22,9.02]
[1743521498654,82.04732314,128.31,128.23,18.64964886]
[1743521498856,0.20516157,128.31,128.25,20.0]
[1743521499053,26.790672,128.31,128.22,9.02]
[1743521499380,0.14216157,128.27,128.21,16.8497]
[1743521499885,7.7957,128.28,128.21,16.8497]
[1743521500083,0.14216157,128.27,128.21,16.8497]
[1743521500288,0.28432314,128.29,128.21,36.3489]
[1743521500667,0.14216157,128.29,128.24,20.0]
[1743521501085,81.7,128.3,128.24,20.0]
[1743521501285,0.20516157,128.31,128.25,7.7972]
[1743521501459,0.20516157,128.31,128.26,9.02]
[1743521502163,0.20516157,128.31,128.23,19.4951]
[1743521503279,7.99886157,128.31,128.24,16.8178]
[1743521504089,7.99886157,128.31,128.24,36.8178]
[1743521504892,0.20516157,128.31,128.25,0.03]
[1743521505188,7.99876157,128.31,128.25,0.03]
[1743521505399,0.14216157,128.28,128.25,0.03]
[1743521505560,0.14216157,128.3,128.25,0.03]
[1743521505768,81.7,128.3,128.25,0.03]
[1743521505971,81.7,128.3,128.26,20.0]
[1743521506172,81.7,128.3,128.21,11.59936321]
[1743521506372,81.7,128.3,128.22,0.14216157]
[1743521507016,0.063,128.31,128.23,7.7984]
[1743521507212,0.063,128.31,128.24,0.14216157]
[1743521507372,0.063,128.31,128.25,9.02]
[1743521508088,0.063,128.31,128.28,20.0]
[1743521508290,81.7,128.38,128.3,20.0]
[1743521508491,81.7,128.38,128.31,27.66964886]
[1743521508685,89.4894,128.38,128.31,27.66964886]
[1743521509081,89.4894,128.38,128.31,35.46294886]
[1743521509998,81.7,128.38,128.31,35.46294886]
[1743521510583,89.4894,128.38,128.31,35.46294886]
[1743521511312,20.45246157,128.4,128.32,0.14216157]
[1743521511313,20.3103,128.4,128.32,0.14216157]
[1743521511482,20.3103,128.4,128.34,20.0]
[1743521511813,8.119,128.4,128.34,20.0]
[1743521511992,81.7,128.41,128.34,20.0]
[1743521512194,12.2018,128.43,128.38,20.0]
[1743521512388,0.063,128.44,128.39,9.02]
[1743521512594,0.063,128.44,128.4,224.5]
[1743521512781,0.063,128.44,128.41,18.64964886]
[1743521513316,0.063,128.44,128.4,224.5]
[1743521513518,0.063,128.44,128.4,232.288]
[1743521513820,0.063,128.44,128.43,20.0]
[1743521513992,0.063,128.44,128.41,18.64964886]
[1743521514806,0.063,128.44,128.43,38.79181043]
[1743521516227,0.063,128.44,128.43,46.57811043]
[1743521516632,0.063,128.44,128.43,38.79181043]
[1743521516822,0.063,128.44,128.43,38.64964886]
[1743521517596,0.063,128.44,128.43,20.0]
[1743521517924,0.063,128.44,128.43,146.47275793]
[1743521518117,13.2918,128.48,128.43,126.47275793]
[1743521518286,62.8924979,128.51,128.43,126.47275793]
[1743521518488,62.8924979,128.5,128.43,126.47275793]
[1743521518707,62.8924979,128.5,128.43,36.88788772]
[1743521518922,81.7,128.5,128.43,36.88788772]
[1743521519300,27.2394,128.49,128.43,36.88788772]
[1743521519616,27.2394,128.49,128.46,23.93564674]
[1743521520202,0.28432314,128.48,128.46,23.93564674]
[1743521520400,27.2394,128.49,128.46,23.93564674]
[1743521520630,7.7814,128.51,128.47,9.0]
[1743521520793,21.0728,128.52,128.47,9.0]
[1743521520994,40.525,128.52,128.47,9.0]
[1743521521294,21.0728,128.52,128.47,9.0]